fUST/lending_fUST_20251022
["ID","MTS","AMOUNT","RATE_DAILY","PERIOD"]
[392081861,1761138638637,-207.3794934,0.00024199,2]
[392081863,1761138638646,-500.0,0.000242,2]
[392081865,1761138638655,-500.0,0.00024249,6]
[392081867,1761138638665,-500.0,0.00024249,6]
[392081869,1761138638675,-500.0,0.00024249,6]
[392081871,1761138638684,-231.0,0.00024249,6]
[392081873,1761138638694,-300.0,0.00024514,2]
[392081875,1761138638705,-305.97241648,0.00024514,2]
[392081877,1761138638715,-407.96102806,0.00024514,2]
[392081879,1761138638724,-500.0,0.00024514,2]
[392081881,1761138638733,-500.0,0.00024514,2]
[392081883,1761138638743,-198.0,0.00024514,2]
[392081885,1761138638752,-3047.68893,0.00024514,2]
[392081887,1761138638762,-500.0,0.00024514,2]
[392081889,1761138638772,-500.0,0.00024514,2]
[392081891,1761138638781,-3047.68893,0.00024514,2]
[392081893,1761138638790,-500.0,0.00024514,2]
[392081895,1761138638799,-500.0,0.00024514,2]
[392081897,1761138638809,-547.27730076,0.00024514,2]
[392081899,1761138638818,-500.0,0.00024514,2]
[392081901,1761138638828,-500.0,0.00024514,2]
[392081903,1761138638837,-500.0,0.00024514,2]
[392081905,1761138638849,-500.0,0.00024514,2]
[392081907,1761138638859,-500.0,0.00024514,2]
[392081909,1761138638869,-3047.68893,0.00024514,2]
[392081911,1761138638878,-500.0,0.00024514,2]
[392081913,1761138638888,-567.93531453,0.00024514,2]
[392081915,1761138638898,-3047.68893,0.00024514,2]
[392081917,1761138638907,-500.0,0.00024514,2]
[392081919,1761138638917,-3047.68893,0.00024514,2]
[392081921,1761138638926,-500.0,0.00024514,2]
[392081923,1761138638936,-500.0,0.00024514,2]
[392081925,1761138638945,-3047.68893,0.00024514,2]
[392081927,1761138638955,-500.0,0.00024514,2]
[392081929,1761138638965,-3047.68893,0.00024514,2]
[392081931,1761138638975,-500.0,0.00024514,2]
[392081933,1761138638985,-500.0,0.00024514,2]
[392081935,1761138638995,-3047.68893,0.00024514,2]
[392081937,1761138639006,-500.0,0.00024514,2]
[392081939,1761138639016,-3047.68893,0.00024514,2]
[392081941,1761138639025,-500.0,0.00024514,2]
[392081943,1761138639035,-3047.68893,0.00024514,2]
[392081945,1761138639044,-500.0,0.00024514,2]
[392081947,1761138639054,-3047.68893,0.00024514,2]
[392081949,1761138639063,-500.0,0.00024514,2]
[392081951,1761138639073,-500.0,0.00024514,2]
[392081952,1761138639082,-3047.68893,0.00024514,2]
[392081954,1761138639092,-500.0,0.00024514,2]
[392081956,1761138639101,-3047.68893,0.00024514,2]
[392081958,1761138639111,-500.0,0.00024514,2]
[392081960,1761138639121,-3047.68893,0.00024514,2]
[392081962,1761138639131,-500.0,0.00024514,2]
[392081964,1761138639140,-3047.68893,0.00024514,2]
[392081966,1761138639150,-500.0,0.00024514,2]
[392081968,1761138639159,-3047.68893,0.00024514,2]
[392081970,1761138639169,-500.0,0.00024514,2]
[392081972,1761138639179,-3047.68893,0.00024514,2]
[392081974,1761138639188,-3047.68893,0.00024514,2]
[392081976,1761138639198,-500.0,0.00024514,2]
[392081978,1761138639208,-3047.68893,0.00024514,2]
[392081980,1761138639218,-500.0,0.00024514,2]
[392081982,1761138639228,-3047.68893,0.00024514,2]
[392081984,1761138639237,-500.0,0.00024514,2]
[392081986,1761138639247,-3047.68893,0.00024514,2]
[392081988,1761138639257,-3047.68893,0.00024514,2]
[392081990,1761138639267,-3047.68893,0.00024514,2]
[392081991,1761138639275,-247.84640887,0.00024514,2]
[392081993,1761138639285,-3047.68893,0.00024514,2]
[392081995,1761138639294,-500.0,0.00024514,2]
[392081997,1761138639304,-3047.68893,0.00024514,2]
[392081999,1761138639313,-3047.68893,0.00024514,2]
[392082001,1761138639323,-3047.68893,0.00024514,2]
[392082003,1761138639332,-500.0,0.00024514,2]
[392082005,1761138639341,-3047.68893,0.00024514,2]
[392082007,1761138639350,-3047.68893,0.00024514,2]
[392082009,1761138639359,-3047.68893,0.00024514,2]
[392082011,1761138639369,-500.0,0.00024514,2]
[392082013,1761138639383,-3047.68893,0.00024514,2]
[392082015,1761138639393,-3047.68893,0.00024514,2]
[392082017,1761138639402,-500.0,0.00024514,2]
[392082019,1761138639411,-3047.68893,0.00024514,2]
[392082021,1761138639420,-500.0,0.00024514,2]
[392082023,1761138639428,-3047.68893,0.00024514,2]
[392082025,1761138639438,-3047.68893,0.00024514,2]
[392082027,1761138639448,-3047.68893,0.00024514,2]
[392082029,1761138639459,-500.0,0.00024514,2]
[392082031,1761138639469,-3047.68893,0.00024514,2]
[392082033,1761138639478,-3047.68893,0.00024514,2]
[392082034,1761138639487,-3047.68893,0.00024514,2]
[392082036,1761138639496,-3047.68893,0.00024514,2]
[392082038,1761138639505,-3047.68893,0.00024514,2]
[392082040,1761138639514,-3047.68893,0.00024514,2]
[392082042,1761138639526,-3047.68893,0.00024514,2]
[392082044,1761138639535,-3047.68893,0.00024514,2]
[392082047,1761138639632,-3047.68893,0.00024514,2]
[392082049,1761138639643,-3047.68893,0.00024514,2]
[392082051,1761138639653,-3047.68893,0.00024514,2]
[392082053,1761138639663,-3047.68893,0.00024514,2]
[392082055,1761138639672,-3047.68893,0.00024514,2]
[392082057,1761138639682,-3047.68893,0.00024514,2]
[392082059,1761138639692,-3047.68893,0.00024514,2]
[392082061,1761138639701,-3047.68893,0.00024514,2]
[392082063,1761138639712,-3047.68893,0.00024514,2]
[392082065,1761138639722,-3047.68893,0.00024514,2]
[392082067,1761138639731,-3047.68893,0.00024514,2]
[392082068,1761138639740,-3047.68893,0.00024514,2]
[392082070,1761138639750,-3047.68893,0.00024514,2]
[392082072,1761138639759,-3047.68893,0.00024514,2]
[392082074,1761138639768,-3047.68893,0.00024514,2]
[392082076,1761138639777,-44781.71847626,0.00024515,2]
[392082078,1761138639787,-482.23,0.00024603,10]
[392082080,1761138639797,-401.86,0.00024603,10]
[392082082,1761138639806,-334.88,0.00024603,10]
[392082084,1761138639815,-226.84556427,0.00024612,2]
[392082086,1761138639824,-500.0,0.00024673,2]
[392082088,1761138639833,-400.17946326,0.00024673,2]
[392082090,1761138639842,-500.0,0.00024673,2]
[392082092,1761138639850,-384.64026116,0.00024673,2]
[392082094,1761138639859,-500.0,0.00024673,2]
[392082095,1761138639868,-343.43017407,0.00024673,2]
[392082097,1761138639877,-500.0,0.00024673,2]
[392082100,1761138639887,-500.0,0.00024673,2]
[392082101,1761138639896,-500.0,0.00024673,2]
[392082104,1761138639906,-2788.97,0.000247,7]
[392082105,1761138639915,-500.0,0.00024873,2]
[392082107,1761138639924,-502.53122103,0.00024873,2]
[392082109,1761138639933,-500.0,0.00024873,2]
[392082111,1761138639942,-503.58629536,0.00024873,2]
[392082113,1761138639951,-500.0,0.00024873,2]
[392082115,1761138639962,-501.61245121,0.00024873,2]
[392082117,1761138639971,-500.0,0.00024873,2]
[392082119,1761138639980,-2396.46880357,0.0002489,2]
[392082121,1761138639989,-198.703231,0.000249,2]
[392082123,1761138639999,-333753.525098,0.000249,2]
[392082125,1761138640008,-177.0,0.00025199,2]
[392082127,1761138640017,-1317.0,0.00025204,2]
[392082129,1761138640026,-1000.0,0.00025221,2]
[392082131,1761138640035,-1000.0,0.00025221,2]
[392082133,1761138640047,-1000.0,0.00025221,2]
[392082135,1761138640056,-500.0,0.00025221,2]
[392082137,1761138640065,-500.0,0.00025221,2]
[392082139,1761138640074,-151.0,0.00025303,2]
[392082141,1761138640083,-181.40628429,0.00025303,2]
[392082143,1761138640092,-277.9173203,0.00025303,2]
[392082144,1761138640101,-151.0,0.00025303,2]
[392082146,1761138640110,-152.65504973,0.00025303,2]
[392082148,1761138640120,-151.0,0.00025303,2]
[392082150,1761138640128,-151.0,0.00025303,2]
[392082152,1761138640138,-151.0,0.00025303,2]
[392082154,1761138640147,-152.0600527,0.00025303,2]
[392082156,1761138640156,-151.0,0.00025303,2]
[392082158,1761138640166,-151.0,0.00025303,2]
[392082160,1761138640175,-152.51769787,0.00025303,2]
[392082162,1761138640184,-151.0,0.00025303,2]
[392082164,1761138640193,-153.51067577,0.00025358,2]
[392082166,1761138640202,-151.0,0.00025358,2]
[392082169,1761138640211,-187.26822807,0.00025358,2]
[392082171,1761138640220,-151.0,0.00025358,2]
[392082173,1761138640229,-151.0,0.00025358,2]
[392082175,1761138640239,-151.0,0.00025358,2]
[392082177,1761138640248,-151.0,0.00025358,2]
[392082179,1761138640257,-152.80166852,0.00025358,2]
[392082181,1761138640266,-151.0,0.00025413,2]
[392082183,1761138640275,-151.0,0.00025413,2]
[392082185,1761138640285,-151.0,0.00025413,2]
[392082187,1761138640294,-151.0,0.00025413,2]
[392082189,1761138640303,-151.0,0.00025413,2]
[392082190,1761138640312,-1000.0,0.00025421,2]
[392082192,1761138640321,-1000.0,0.00025421,2]
[392082193,1761138640330,-1000.0,0.00025421,2]
[392082195,1761138640339,-204.08490076,0.00025467,2]
[392082197,1761138640349,-201.10014888,0.00025467,2]
[392082199,1761138640358,-151.0,0.00025467,2]
[392082201,1761138640368,-151.0,0.00025467,2]
[392082203,1761138640383,-201.87286507,0.00025467,2]
[392082205,1761138640393,-156.43795525,0.00025522,2]
[392082207,1761138640402,-154.92803496,0.00025522,2]
[392082209,1761138640411,-1500.0,0.00025768,2]
[392082211,1761138640422,-1387.71567513,0.00025768,2]
[392082213,1761138640431,-565.25190032,0.00025768,2]
[392082215,1761138640440,-1500.0,0.00025968,2]
[392082217,1761138640450,-581.98124679,0.00025968,2]
[392082219,1761138640460,-1500.0,0.00025968,2]
[392082221,1761138640470,-198.703231,0.0002613,2]
[392082223,1761138640479,-151.70609,0.0002613,2]
[392082225,1761138640488,-204.0,0.00026199,2]
[392082227,1761138640497,-1500.0,0.00026316,2]
[392082229,1761138640506,-646.0,0.00026336,2]
[392082231,1761138640515,-2026.45251339,0.00026516,2]
[392082232,1761138640524,-420.0,0.0002657,2]
[392082235,1761138640534,-231.0,0.00027199,2]
[392082236,1761138640543,-150.0,0.00027256,30]
[392082238,1761138640553,-198.703231,0.0002736,2]
[392082240,1761138640561,-151.70609,0.0002736,2]
[392082242,1761138640570,-248.93,0.000277,7]
[392082244,1761138640580,-457.32,0.000277,2]
[392082246,1761138640589,-258.0,0.00028199,2]
[392082248,1761138640598,-198.703231,0.0002859,2]
[392082250,1761138640608,-151.70609,0.0002859,2]
[392082252,1761138640617,-587.0,0.00028799,2]
[392082253,1761138640626,-285.0,0.00029199,2]
[392082256,1761138640636,-241.269,0.00029206,22]
[392082257,1761138640646,-150.0,0.00029734,30]
[392082259,1761138640655,-198.703231,0.0002982,2]
[392082261,1761138640664,-151.70609,0.0002982,2]
[392082263,1761138640674,-2396.46880354,0.00030004,2]
[392082265,1761138640683,-312.0,0.00030199,2]
[392082267,1761138640693,-500.0,0.00031041,7]
[392082269,1761138640702,-339.0,0.00031199,2]
[392082271,1761138640712,-674.0,0.00031214,2]
[392082273,1761138640721,-2788.97,0.000317,7]
[392082275,1761138640730,-457.32,0.000323,2]
[392082277,1761138640739,-152.53,0.00032769,15]
[392082279,1761138640748,-152.53,0.00032869,15]
[392082280,1761138640757,-2999.0,0.00032876,120]
[392082282,1761138640767,-500.0,0.00032877,30]
[392082284,1761138640776,-152.53,0.00032969,60]
[392082286,1761138640785,-152.53,0.00033069,60]
[392082288,1761138640794,-500.0,0.00033425,30]
[392082290,1761138640804,-500.0,0.00033973,30]
[392082292,1761138640812,-500.0,0.00034521,30]
[392082294,1761138640821,-198.703231,0.00034674,10]
[392082296,1761138640830,-248.93,0.000347,7]
[392082298,1761138640839,-500.0,0.00035068,30]
[392082300,1761138640848,-2396.46880354,0.00035117,2]
[392082302,1761138640857,-1376.198206,0.00035198,2]
[392082304,1761138640866,-205.15769069,0.00035532,2]
[392082305,1761138640875,-98009.799999,0.00035603,14]
[392082307,1761138640884,-500.0,0.00035616,30]
[392082309,1761138640893,-162.95558814,0.00035616,2]
[392082311,1761138640902,-160.0,0.000358,30]
[392082313,1761138640911,-160.0,0.000358,30]
[392082315,1761138640920,-163.0,0.000358,35]
[392082317,1761138640930,-163.0564623,0.000358,35]
[392082319,1761138640939,-457.32,0.000358,14]
[392082321,1761138640948,-1593.0,0.00036,2]
[392082322,1761138640958,-500.0,0.00036164,30]
[392082324,1761138640970,-150.0,0.000366,2]
[392082326,1761138640978,-500.0,0.00036712,30]
[392082328,1761138640987,-198.703231,0.0003697,10]
[392082330,1761138640996,-151.70609,0.0003697,10]
[392082332,1761138641005,-500.0,0.0003726,30]
[392082334,1761138641014,-160.0,0.0003733,3]
[392082336,1761138641023,-2788.97,0.000374,14]
[392082338,1761138641033,-285.262,0.00037639,2]
[392082340,1761138641042,-212.147,0.00037639,2]
[392082341,1761138641051,-500.0,0.00037808,30]
[392082343,1761138641061,-500.0,0.00038356,30]
[392082345,1761138641071,-160.0,0.00038588,4]
[392082347,1761138641081,-500.0,0.00038904,30]
[392082349,1761138641089,-198.703231,0.00039267,10]
[392082351,1761138641098,-151.70609,0.00039267,10]
[392082353,1761138641107,-500.0,0.00039452,30]
[392082355,1761138641117,-983.0,0.00039703,2]
[392082356,1761138641126,-632.0,0.00039703,2]
[392082358,1761138641136,-2164.0,0.00039703,2]
[392082360,1761138641146,-248.93,0.000398,7]
[392082362,1761138641156,-160.0,0.00039847,5]
[392082364,1761138641165,-150.0,0.00039928,2]
[392082366,1761138641174,-500.0,0.0004,30]
[392082368,1761138641184,-2396.46880354,0.00040231,2]
[392082370,1761138641193,-184.835729,0.000405,120]
[392082372,1761138641203,-536.21920373,0.000405,120]
[392082374,1761138641215,-170.49818972,0.000405,120]
[392082376,1761138641224,-195.16799223,0.000405,120]
[392082378,1761138641233,-500.0,0.00040548,30]
[392082380,1761138641243,-150.0,0.00040639,2]
[392082382,1761138641252,-153.0,0.00040962,30]
[392082384,1761138641260,-153.0,0.00040962,30]
[392082385,1761138641269,-153.0,0.00040962,30]
[392082387,1761138641278,-153.0,0.00040962,30]
[392082389,1761138641287,-160.0,0.00041,90]
[392082391,1761138641296,-160.0,0.00041,90]
[392082393,1761138641305,-160.0,0.00041,60]
[392082395,1761138641314,-160.0,0.00041,60]
[392082397,1761138641323,-160.0,0.00041,60]
[392082398,1761138641332,-160.0,0.00041,30]
[392082400,1761138641341,-160.0,0.00041,30]
[392082402,1761138641350,-160.0,0.00041,45]
[392082404,1761138641359,-160.0,0.00041,45]
[392082406,1761138641368,-160.0,0.00041,45]
[392082408,1761138641382,-162.0,0.00041,35]
[392082410,1761138641391,-5000.0,0.00041,30]
[392082412,1761138641401,-4000.0,0.00041,2]
[392082414,1761138641411,-500.0,0.00041096,30]
[392082416,1761138641420,-160.0,0.00041106,6]
[392082417,1761138641429,-457.32,0.000412,14]
[392082419,1761138641438,-600.0,0.00041451,90]
[392082421,1761138641447,-198.703231,0.00041564,10]
[392082423,1761138641457,-151.70609,0.00041564,10]
[392082425,1761138641469,-4417.0,0.00041607,120]
[392082426,1761138641478,-500.0,0.00041644,120]
[392082428,1761138641487,-184.835729,0.000417,120]
[392082430,1761138641496,-170.49818972,0.000417,120]
[392082432,1761138641586,-536.21920373,0.000417,120]
[392082433,1761138641595,-195.16799223,0.000417,120]
[392082434,1761138641603,-168.0,0.00041791,2]
[392082435,1761138641612,-2788.97,0.00042,14]
[392082436,1761138641621,-150.0,0.00042,10]
[392082437,1761138641630,-221.81118792,0.00042,7]
[392082438,1761138641638,-150.21345069,0.00042,10]
[392082439,1761138641647,-168.6930046,0.00042142,30]
[392082440,1761138641656,-500.0,0.00042192,120]
[392082441,1761138641665,-160.0,0.00042365,7]
[392082442,1761138641674,-250.0,0.00042548,10]
[392082443,1761138641683,-983.0,0.00042703,2]
[392082444,1761138641692,-632.0,0.00042703,2]
[392082445,1761138641700,-2164.0,0.00042703,2]
[392082446,1761138641710,-500.0,0.0004274,120]
[392082447,1761138641719,-184.835729,0.00043,120]
[392082448,1761138641728,-170.49818972,0.00043,120]
[392082449,1761138641736,-536.21920373,0.00043,120]
[392082451,1761138641745,-160.0,0.00043,120]
[392082453,1761138641754,-160.0,0.00043,120]
[392082455,1761138641763,-160.0,0.00043,90]
[392082457,1761138641772,-160.0,0.00043,90]
[392082459,1761138641782,-160.0,0.00043,90]
[392082461,1761138641790,-202.1668955,0.00043096,10]
[392082463,1761138641799,-168.0,0.00043212,2]
[392082465,1761138641808,-150.0,0.0004327,2]
[392082467,1761138641818,-500.0,0.00043288,120]
[392082469,1761138641827,-248.93,0.000433,14]
[392082471,1761138641836,-160.0,0.00043623,8]
[392082473,1761138641845,-1000.0,0.000438,90]
[392082475,1761138641854,-500.01,0.00043836,120]
[392082477,1761138641863,-198.703231,0.0004386,10]
[392082479,1761138641872,-151.70609,0.0004386,10]
[392082481,1761138641881,-280.00875242,0.00044172,3]
[392082483,1761138641890,-1120.03500967,0.00044172,3]
[392082485,1761138641899,-520.70923437,0.00044232,2]
[392082487,1761138641909,-937.27662186,0.00044232,2]
[392082489,1761138641918,-1664.60328042,0.00044232,2]
[392082491,1761138641927,-184.835729,0.000443,120]
[392082493,1761138641936,-170.49818972,0.000443,120]
[392082495,1761138641945,-536.21920373,0.000443,120]
[392082497,1761138641954,-980.3,0.000443,120]
[392082499,1761138641965,-283.8396089,0.00044334,2]
[392082501,1761138641974,-500.0,0.0004444,60]
[392082503,1761138641983,-50000.19748401,0.000445,120]
[392082504,1761138641992,-198.703231,0.0004455,60]
[392082506,1761138642001,-100637.03456221,0.0004455,60]
[392082509,1761138642020,-8293.70840359,0.0004455,60]
[392082524,1761138642163,-500.0,0.00024873,2]
[392082526,1761138642172,-505.90666364,0.00025421,2]
[392082528,1761138642183,-16435.98233321,0.0004455,60]
[392082530,1761138642195,-106482.55450059,0.0004455,60]
[392083000,1761138901512,3974.8965333,0.00023855,2]
[392083001,1761138946927,-400.0,0.00024412,2]
[392083002,1761139070810,150000.0,0.0003559,30]
[392083003,1761139292449,210.9971212,0.00023509,2]
[392083005,1761139462783,3287.61584604,0.00023679,2]
[392083006,1761139462804,4751.08667766,0.00023679,2]
[392083029,1761139681698,967.4578717,0.0002389,2]
[392083057,1761139831830,-4567.03457016,0.00024142,2]
[392083058,1761139831839,-284.4672244,0.00024198,4]
[392083059,1761139831849,-150.0,0.00024298,2]
[392083060,1761139831858,-410.4943495,0.00024395,2]
[392083061,1761139831867,-252.15,0.00024397,10]
[392083062,1761139831876,-237.04,0.00024397,10]
[392083063,1761139831885,-197.53,0.00024397,10]
[392083064,1761139831894,-1200.0,0.00024405,2]
[392083065,1761139831904,-300.0,0.00024406,2]
[392083066,1761139831914,-300.0,0.00024406,2]
[392083067,1761139831923,-300.0,0.00024406,2]
[392083068,1761139831932,-300.0,0.00024406,2]
[392083069,1761139831942,-300.0,0.00024406,2]
[392083070,1761139831951,-164748.22812229,0.00024407,2]
[392083101,1761139837790,-164.61,0.00024397,10]
[392083103,1761139837799,-158.79189499,0.00024406,2]
[392083105,1761139837808,-50.24810501,0.00024406,2]
[392083107,1761139837819,-449.75189499,0.00024406,2]
[392083108,1761139837828,-1249.5524613,0.00024406,2]
[392083109,1761139837837,-500.0,0.00024406,2]
[392083110,1761139837845,-1045.96027791,0.00024406,2]
[392083111,1761139837860,-203.59218339,0.00024406,2]
[392083112,1761139837868,-75.55781661,0.00024406,2]
[392083589,1761139842864,-98.65721834,0.00024406,2]
[392083591,1761139842873,-298.30482756,0.00024406,2]
[392084997,1761140025238,168.793832,0.00011702,2]
[392084998,1761140025477,168.793832,0.00015602,2]
[392084999,1761140025688,168.793832,0.00019503,2]
[392085000,1761140025907,168.793832,0.00023403,2]
[392085001,1761140040281,162751.69470258,0.0003,120]
[392085002,1761140095423,2773.51353059,0.0002389,2]
[392085003,1761140103611,832.77659205,0.0002389,2]
[392085004,1761140103637,4167.22340795,0.0002389,2]
[392085005,1761140128434,5000.0,0.0002389,2]
[392085006,1761140152308,832.78659205,0.0002389,2]
[392085007,1761140152336,4167.21340795,0.0002389,2]
[392085012,1761140393507,666.0,0.0002334,2]
[392085013,1761140413400,225.6786667,0.00023337,2]
[392085032,1761140538933,-564.77230381,0.00024019,2]
[392085034,1761140600459,326.213544,0.00013699,2]
[392085035,1761140600641,326.213544,0.00020187,2]
[392085036,1761140860256,10165.26776581,0.00035578,30]
[392085037,1761140897649,4288.69083735,0.000235,30]
[392085038,1761140897676,10000.01,0.000235,30]
[392085039,1761140897701,10000.01,0.000235,30]
[392085040,1761140897727,10000.01,0.000235,30]
[392085041,1761140897753,10000.01,0.000235,30]
[392085042,1761140897779,10000.01,0.000235,30]
[392085043,1761140897804,10000.01,0.000235,30]
[392085044,1761140897829,10000.01,0.000235,30]
[392085045,1761140897854,10000.01,0.000235,30]
[392085046,1761140897879,10000.01,0.000235,30]
[392085047,1761140910586,-2635.13500389,0.000235,30]
[392085048,1761140910703,-10000.01,0.000235,30]
[392085049,1761140912656,-10000.01,0.000235,30]
[392085050,1761140912743,-10000.01,0.000235,30]
[392085051,1761140912878,-10000.01,0.000235,30]
[392085052,1761140913054,-10000.01,0.000235,30]
[392085053,1761140913195,-10000.01,0.000235,30]
[392085054,1761140913378,-500.0,0.00023499,2]
[392085055,1761140913421,-1221.5783638,0.00023499,2]
[392085056,1761140913431,-7778.4316362,0.000235,30]
[392085057,1761140913502,-500.0,0.00023499,2]
[392085058,1761140913534,-1221.5783638,0.00023499,2]
[392085059,1761140913565,-471.98293432,0.00023499,2]
[392085060,1761140913595,-1221.5783638,0.00023499,2]
[392085061,1761140913724,-1221.5783638,0.00023499,2]
[392085062,1761140913735,-1221.5783638,0.00023499,2]
[392085063,1761140913744,-726.57394856,0.00023499,2]
[392085064,1761140918840,-495.00441524,0.00023499,2]
[392085065,1761140918871,-1221.5783638,0.00023499,2]
[392085066,1761140918901,-1221.5783638,0.00023499,2]
[392085067,1761140918932,-1221.5783638,0.00023499,2]
[392085068,1761140918962,-458.95262292,0.00023499,2]
[392085069,1761140919059,-762.62574088,0.00023499,2]
[392085070,1761140919097,-1221.5783638,0.00023499,2]
[392085071,1761140919126,-1221.5783638,0.00023499,2]
[392085072,1761140919155,-1221.5783638,0.00023499,2]
[392085073,1761140919187,-1221.5783638,0.00023499,2]
[392085074,1761140919289,-1221.5783638,0.00023499,2]
[392085075,1761140919318,-1221.5783638,0.00023499,2]
[392085076,1761140919347,-1221.5783638,0.00023499,2]
[392085077,1761140919376,-1221.5783638,0.00023499,2]
[392085078,1761140919466,-1221.5783638,0.00023499,2]
[392085079,1761140919495,-1221.5783638,0.00023499,2]
[392085080,1761140919523,-1221.5783638,0.00023499,2]
[392085081,1761140919551,-1221.5783638,0.00023499,2]
[392085082,1761140919785,-1221.5783638,0.00023499,2]
[392085083,1761140919812,-1221.5783638,0.00023499,2]
[392085084,1761140919839,-1221.5783638,0.00023499,2]
[392085085,1761140919866,-1221.5783638,0.00023499,2]
[392085086,1761140919974,-1221.5783638,0.00023499,2]
[392085087,1761140920006,-1221.5783638,0.00023499,2]
[392085088,1761140920033,-1221.5783638,0.00023499,2]
[392085089,1761140920061,-1221.5783638,0.00023499,2]
[392085090,1761140920126,-1221.5783638,0.00023499,2]
[392085091,1761140920153,-1221.5783638,0.00023499,2]
[392085092,1761140920184,-1221.5783638,0.00023499,2]
[392085093,1761140920212,-1221.5783638,0.00023499,2]
[392085094,1761140920307,-1221.5783638,0.00023499,2]
[392085095,1761140920334,-1221.5783638,0.00023499,2]
[392085096,1761140920361,-1221.5783638,0.00023499,2]
[392085097,1761140920389,-1221.5783638,0.00023499,2]
[392085098,1761140920603,-142.7201738,0.00023499,2]
[392085099,1761140920617,-1078.85819,0.00023499,2]
[392085100,1761140920627,-142.7201738,0.00023499,2]
[392085101,1761140920641,-227.3830896,0.00023499,2]
[392085102,1761140921719,-851.4751004,0.00023499,2]
[392085103,1761140921746,-1221.5783638,0.00023499,2]
[392085104,1761140921773,-1221.5783638,0.00023499,2]
[392085105,1761140921803,-1221.5783638,0.00023499,2]
[392085106,1761140921892,-1221.5783638,0.00023499,2]
[392085107,1761140921925,-1221.5783638,0.00023499,2]
[392085108,1761140921954,-1221.5783638,0.00023499,2]
[392085109,1761140921984,-1221.5783638,0.00023499,2]
[392085110,1761140922069,-1221.5783638,0.00023499,2]
[392085111,1761140922097,-1221.5783638,0.00023499,2]
[392085112,1761140922125,-1221.5783638,0.00023499,2]
[392085113,1761140922153,-1221.5783638,0.00023499,2]
[392085114,1761140922335,-1221.5783638,0.00023499,2]
[392085115,1761140922363,-1221.5783638,0.00023499,2]
[392085116,1761140922392,-1221.5783638,0.00023499,2]
[392085117,1761140922421,-1221.5783638,0.00023499,2]
[392085118,1761140922548,-227.3830896,0.00023499,2]
[392085119,1761140922563,-994.1952742,0.00023499,2]
[392085120,1761140922572,-227.3830896,0.00023499,2]
[392085121,1761140922585,-227.3830896,0.00023499,2]
[392085122,1761140924899,-766.8121846,0.00023499,2]
[392085123,1761140924931,-1221.5783638,0.00023499,2]
[392085124,1761140924961,-1221.5783638,0.00023499,2]
[392085125,1761140924995,-1221.5783638,0.00023499,2]
[392085126,1761140925061,-1221.5783638,0.00023499,2]
[392085127,1761140925090,-1221.5783638,0.00023499,2]
[392085128,1761140925118,-1221.5783638,0.00023499,2]
[392085129,1761140925147,-1221.5783638,0.00023499,2]
[392085130,1761140925256,-1221.5783638,0.00023499,2]
[392085131,1761140925284,-1221.5783638,0.00023499,2]
[392085132,1761140925399,-142.7201738,0.000235,30]
[392085133,1761140925412,-1221.5783638,0.000235,30]
[392085134,1761140925426,-5113.6965448,0.000235,30]
[392085135,1761140925443,-9320.49356837,0.000235,30]
[392085136,1761140926805,639.19798106,0.00023499,2]
[392085137,1761140926835,639.19798106,0.00023499,2]
[392085138,1761140926860,639.19798106,0.00023499,2]
[392085139,1761140926886,639.19798106,0.00023499,2]
[392085140,1761140926917,639.19798106,0.00023499,2]
[392085141,1761140926947,639.19798106,0.00023499,2]